bitfinex/quotes_BTCUSD_20250314
["timestamp","ask_amount","ask_price","bid_price","bid_amount"]
[1741970264972,0.01485186,84503.0,84501.0,0.23668]
[1741970265165,0.01485186,84503.0,84497.0,0.011834]
[1741970265333,0.236666,84508.0,84503.0,0.236677]
[1741970265545,0.236664,84508.0,84504.0,0.236674]
[1741970265748,0.3,84514.0,84510.0,0.236656]
[1741970265950,0.3,84514.0,84511.0,0.011832]
[1741970265951,0.01464046,84514.0,84511.0,0.011832]
[1741970266155,0.00016933,84521.0,84510.0,0.248487]
[1741970266156,0.011831,84518.0,84510.0,0.011832]
[1741970266356,0.236641,84516.0,84511.0,0.236655]
[1741970266572,0.23679633,84521.0,84513.0,0.236649]
[1741970267512,0.0001697,84507.0,84506.0,0.248502]
[1741970268057,0.0001697,84507.0,84505.0,0.248505]
[1741970268261,0.0001697,84507.0,84506.0,0.236669]
[1741970268457,0.0001697,84507.0,84494.0,0.011835]
[1741970268458,0.011833,84503.0,84494.0,0.011835]
[1741970268683,0.011834,84500.0,84495.0,2e-07]
[1741970268882,0.011834,84501.0,84495.0,2e-07]
[1741970269083,0.011834,84500.0,84495.0,2e-07]
[1741970269327,0.248531,84496.0,84495.0,2e-07]
[1741970270835,0.236695,84497.0,84495.0,2e-07]
[1741970271179,0.011834,84496.0,84495.0,2e-07]
[1741970271385,0.236697,84496.0,84495.0,2e-07]
[1741970271590,0.011834,84498.0,84495.0,2e-07]
[1741970271791,0.248531,84496.0,84495.0,2e-07]
[1741970272462,0.24855,84490.0,84484.0,0.011836]
[1741970272663,0.011836,84488.0,84481.0,0.236738]
[1741970272839,0.011836,84488.0,84478.0,0.011837]
[1741970273073,0.011836,84484.0,84478.0,2e-07]
[1741970273255,0.236745,84479.0,84478.0,2e-07]
[1741970273430,0.248582,84479.0,84478.0,2e-07]
[1741970273634,0.23678,84467.0,84464.0,2e-07]
[1741970273832,0.248623,84465.0,84464.0,2e-07]
[1741970274861,0.248608,84470.0,84464.0,2e-07]
[1741970275024,0.011837,84480.0,84474.0,0.011837]
[1741970275230,0.236752,84477.0,84473.0,0.236761]
[1741970275509,0.02660747,84479.0,84474.0,0.236758]
[1741970275792,0.23675,84477.0,84472.0,0.2486]
[1741970275949,0.3,84479.0,84477.0,0.23675]
[1741970276145,0.3,84479.0,84478.0,0.236748]
[1741970276364,0.3,84479.0,84473.0,0.011838]
[1741970276365,0.3,84479.0,84473.0,0.248599]
[1741970276579,0.248586,84478.0,84473.0,0.236761]
[1741970276784,0.011837,84477.0,84468.0,0.236774]
[1741970277009,0.236767,84471.0,84467.0,0.236778]
[1741970277200,0.236767,84471.0,84466.0,0.23678]
[1741970277376,0.236771,84470.0,84465.0,0.248623]
[1741970277784,0.011838,84469.0,84464.0,2e-07]
[1741970277946,0.248611,84469.0,84464.0,0.2367862]
[1741970278159,0.236762,84473.0,84467.0,0.011838]
[1741970278364,0.2486,84473.0,84467.0,0.011838]
[1741970278816,0.236757,84475.0,84471.0,0.236767]
[1741970279020,0.248603,84472.0,84468.0,0.236775]
[1741970279171,0.236768,84471.0,84467.0,0.236777]
[1741970279373,0.011838,84471.0,84466.0,0.236781]
[1741970279780,0.248605,84471.0,84466.0,0.236781]
[1741970280152,0.236762,84473.0,84465.0,0.0003392]
[1741970280363,0.0475,84494.0,84483.0,0.011836]
[1741970280552,0.092534,84499.0,84483.0,0.011836]
[1741970280553,0.236718,84489.0,84483.0,0.011836]
[1741970280798,0.236705,84493.0,84487.0,0.011836]
[1741970280986,0.011835,84495.0,84487.0,0.011836]
[1741970280987,0.011835,84495.0,84488.0,0.011836]
[1741970281155,0.381685,84501.0,84488.0,0.011836]
[1741970281156,0.381684,84501.0,84490.0,0.011835]
[1741970281359,0.236712,84491.0,84485.0,0.248561]
[1741970281562,0.236739,84482.0,84477.0,0.236749]
[1741970281737,0.236739,84481.0,84476.0,0.011837]
[1741970281951,0.011835,84490.0,84482.0,0.236736]
[1741970282170,0.0001697,84507.0,84506.0,0.236669]
[1741970282362,0.0001697,84507.0,84503.0,0.011833]
[1741970282363,0.01515057,84507.0,84504.0,0.236675]
[1741970282587,0.23725275,84507.0,84502.0,0.236678]
[1741970282793,0.00058575,84507.0,84506.0,0.236669]
[1741970282953,0.00058575,84507.0,84506.0,0.248502]
[1741970283510,0.00058575,84507.0,84504.0,0.236675]
[1741970283673,0.00058575,84507.0,84503.0,0.248505]
[1741970283880,0.00058575,84507.0,84505.0,0.236672]
[1741970284059,0.00058575,84507.0,84504.0,0.236675]
[1741970284512,0.011834,84501.0,84491.0,0.236709]
[1741970284714,0.236689,84499.0,84481.0,0.0781]
[1741970285036,0.00058575,84507.0,84477.0,0.248586]
[1741970285037,0.248567,84484.0,84477.0,0.248586]
[1741970285162,0.23672,84488.0,84483.0,0.011836]
[1741970285355,0.011836,84482.0,84475.0,0.2367562]
[1741970285559,0.236753,84476.0,84475.0,2e-07]
[1741970285763,0.24859,84476.0,84475.0,2e-07]
[1741970285983,0.236741,84481.0,84476.0,0.011837]
[1741970286185,0.473359,84503.0,84467.0,0.236776]
[1741970286186,0.011838,84473.0,84467.0,0.236776]
[1741970286405,0.24852,84501.0,84496.0,0.011834]
[1741970286617,0.236709,84492.0,84489.0,0.236716]
[1741970286793,0.248551,84490.0,84486.0,0.236722]
[1741970286997,0.011836,84487.0,84478.0,0.011837]
[1741970287215,0.011835,84490.0,84484.0,0.236729]
[1741970287376,0.236716,84490.0,84482.0,0.011836]
[1741970287581,0.236708,84492.0,84486.0,0.236724]
[1741970287775,0.318436,84500.0,84485.0,0.011836]
[1741970287776,0.011834,84502.0,84488.0,0.011836]
[1741970287977,0.00041605,84504.0,84490.0,0.011835]
[1741970287978,0.236677,84503.0,84490.0,0.011835]
[1741970288220,0.00041605,84504.0,84490.0,0.011835]
[1741970288221,0.236683,84502.0,84490.0,0.248546]
[1741970288421,0.236694,84498.0,84490.0,0.011835]
[1741970288623,0.011837,84474.0,84464.0,0.0499]
[1741970288833,0.3,84499.0,84459.0,0.08440039]
[1741970288834,0.011836,84484.0,84473.0,0.011838]
[1741970289031,0.236739,84481.0,84475.0,0.236755]
[1741970289236,0.011837,84475.0,84464.0,0.011839]
[1741970289517,0.011838,84470.0,84463.0,0.011839]
[1741970289741,0.011838,84471.0,84462.0,0.011839]
[1741970289949,0.24862,84466.0,84453.0,0.01184]
[1741970290126,0.24862,84466.0,84449.0,0.011841]
[1741970290384,0.26309634,84466.0,84453.0,0.248657]
[1741970290563,0.26309634,84466.0,84452.0,0.236818]
[1741970290901,0.56309634,84466.0,84451.0,0.248663]
[1741970291813,0.56309634,84466.0,84451.0,0.236822]
[1741970292069,0.56309634,84466.0,84451.0,0.011841]
[1741970292299,0.56309634,84466.0,84452.0,0.011841]
[1741970292501,0.56309634,84466.0,84454.0,0.236815]
[1741970293206,0.56309634,84466.0,84452.0,0.248661]
[1741970293460,0.56309634,84466.0,84421.0,0.51194531]
[1741970293693,0.011843,84437.0,84427.0,0.011844]
[1741970293963,0.011842,84442.0,84434.0,0.011843]
[1741970294206,0.236874,84433.0,84428.0,0.236887]
[1741970294442,0.011843,84432.0,84427.0,0.236889]
[1741970294684,0.248712,84435.0,84429.0,0.236885]
[1741970294926,0.23687,84435.0,84431.0,0.236877]
[1741970295140,0.24882116,84435.0,84429.0,0.248729]
[1741970295380,0.24882116,84435.0,84430.0,0.236881]
[1741970295381,0.00010816,84435.0,84430.0,0.236881]
[1741970295634,0.00010816,84435.0,84431.0,0.236879]
[1741970295923,0.236882,84430.0,84423.0,0.011845]
[1741970296175,0.24873,84429.0,84424.0,0.236897]
[1741970296398,0.011845,84420.0,84419.0,0.000338]
[1741970297087,0.32623981,84420.0,84419.0,0.000338]
[1741970297350,0.311845,84420.0,84419.0,0.000338]
[1741970297581,0.01439044,84420.0,84419.0,0.000338]
[1741970297820,0.3,84427.0,84419.0,0.000338]
[1741970298065,0.011845,84420.0,84419.0,0.000338]
[1741970298792,0.01491498,84431.0,84423.0,0.011845]
[1741970299028,0.236888,84428.0,84422.0,0.236903]
[1741970299275,0.236888,84428.0,84419.0,0.000338]
[1741970299276,0.236905,84422.0,84419.0,0.000338]
[1741970299522,0.248744,84424.0,84419.0,0.23725]
[1741970299789,0.01432212,84431.0,84419.0,0.012183]
[1741970300018,0.087841,84448.0,84434.0,0.011843]
[1741970300280,0.01470616,84441.0,84434.0,0.248714]
[1741970300533,0.25155916,84441.0,84434.0,0.248714]
[1741970300841,0.02654816,84441.0,84434.0,0.248714]
[1741970301059,0.23685,84442.0,84434.0,0.248714]
[1741970301291,0.236853,84441.0,84434.0,0.248714]
[1741970301827,0.236843,84445.0,84434.0,0.248714]
[1741970301828,0.23682,84453.0,84434.0,0.248714]
[1741970302028,0.24866,84453.0,84434.0,0.248714]
[1741970302225,0.752,84455.0,84434.0,0.248714]
[1741970302423,0.03533843,84466.0,84434.0,0.324314]
[1741970302635,0.248631,84462.0,84434.0,0.370014]
[1741970302842,1.6e-07,84435.0,84434.0,2.18455485]
[1741970303249,0.236726,84486.0,84481.0,0.011836]
[1741970303453,0.236738,84482.0,84475.0,0.011837]
[1741970303666,0.011836,84483.0,84474.0,0.011837]
[1741970303823,0.236735,84483.0,84478.0,0.236748]
[1741970304035,0.236729,84485.0,84479.0,0.236744]
[1741970304206,0.011835,84495.0,84481.0,0.011836]
[1741970304407,0.3,84495.0,84491.0,0.236711]
[1741970304618,0.3,84495.0,84482.0,0.236736]
[1741970304619,0.236722,84487.0,84482.0,0.236736]
[1741970304825,0.236711,84491.0,84487.0,0.236722]
[1741970305028,0.248546,84491.0,84485.0,0.236726]
[1741970305448,0.23729084,84494.0,84485.0,0.011836]
[1741970305654,0.00058584,84494.0,84493.0,0.011835]
[1741970307263,0.00058584,84494.0,84491.0,0.145]
[1741970307470,0.00058584,84494.0,84491.0,0.38171]
[1741970307673,0.00058584,84494.0,84491.0,0.145]
[1741970307880,0.00058584,84494.0,84492.0,0.248543]
[1741970308077,0.00058584,84494.0,84493.0,0.011835]
[1741970308598,0.00058584,84494.0,84493.0,0.02637585]
[1741970308996,8.4e-07,84494.0,84493.0,0.34439598]
[1741970311510,8.4e-07,84494.0,84493.0,0.32637585]
[1741970313850,0.0003394,84515.0,84493.0,0.32637585]
[1741970313851,5.4e-07,84515.0,84514.0,0.011832]
[1741970314061,5.4e-07,84515.0,84514.0,0.40912273]
[1741970314376,5.4e-07,84515.0,84514.0,0.40293985]
[1741970315084,5.4e-07,84521.0,84520.0,0.26300185]
[1741970317506,5.4e-07,84521.0,84520.0,0.248461]
[1741970319160,5.4e-07,84521.0,84520.0,0.26300185]
[1741970320187,5.4e-07,84521.0,84520.0,0.56300185]
[1741970320544,5.4e-07,84521.0,84520.0,0.70613428]
[1741970322952,5.4e-07,84521.0,84520.0,2.33633428]
[1741970323150,6e-07,84549.0,84548.0,0.248379]
[1741970323353,6e-07,84549.0,84548.0,0.393219]
[1741970323483,0.00012553,84549.0,84548.0,0.393219]
[1741970323685,0.0001697,84561.0,84560.0,0.248343]
[1741970323686,2.3e-07,84561.0,84560.0,0.248343]
[1741970327070,2.3e-07,84561.0,84560.0,0.393143]
[1741970330814,0.0003394,84579.0,84560.0,0.393143]
[1741970330815,3.3e-07,84569.0,84568.0,0.24832]
[1741970331010,3.3e-07,84569.0,84568.0,0.26286085]
[1741970331874,3.3e-07,84569.0,84568.0,0.28071301]
[1741970332279,3.3e-07,84569.0,84568.0,0.58071301]
[1741970332453,0.0003394,84579.0,84578.0,0.26283185]
[1741970332454,7.3e-07,84579.0,84578.0,0.26283185]
[1741970332729,0.00041638,84579.0,84578.0,0.393051]
[1741970333396,3.8e-07,84579.0,84578.0,0.70759185]
[1741970333621,5.8e-07,84600.0,84599.0,0.26276985]
[1741970333818,5.8e-07,84600.0,84599.0,0.392989]
[1741970334021,0.00012525,84600.0,84599.0,0.40752985]
[1741970334221,0.00012525,84600.0,84599.0,0.392989]
[1741970334427,0.00012525,84600.0,84599.0,0.15654]
[1741970335694,0.00012525,84600.0,84578.0,0.00876666]
[1741970336049,0.00012525,84600.0,84598.0,0.248232]
[1741970336207,0.00012525,84600.0,84599.0,0.01182]
[1741970337930,0.00012525,84600.0,84599.0,0.01300191]
[1741970338135,0.00012525,84600.0,84599.0,0.24941091]
[1741970338334,0.00012525,84600.0,84599.0,0.248229]
[1741970338720,0.00012525,84600.0,84599.0,0.26276985]
[1741970342644,0.00012525,84600.0,84599.0,0.248229]
[1741970343273,0.00012525,84600.0,84599.0,0.236409]
[1741970343720,0.00012525,84600.0,84593.0,0.011821]
[1741970343919,0.00012525,84600.0,84599.0,0.236409]
[1741970344242,0.00012525,84600.0,84598.0,0.23641]
[1741970344456,0.01194525,84600.0,84594.0,0.236421]
[1741970344686,0.011821,84592.0,84588.0,0.236437]
[1741970344968,0.00012525,84600.0,84598.0,0.01182]
[1741970345196,0.00012525,84600.0,84599.0,0.248229]
[1741970345434,0.00012525,84600.0,84595.0,0.236418]
[1741970345654,0.00012525,84600.0,84598.0,0.248232]
[1741970345885,0.00012525,84600.0,84599.0,0.248229]
[1741970346115,0.00012525,84600.0,84599.0,0.247229]
[1741970351582,0.00012525,84600.0,84599.0,0.26176985]
[1741970351809,0.00012525,84600.0,84599.0,0.247229]
[1741970352263,0.02202178,84600.0,84599.0,0.247229]
[1741970352484,0.02202178,84600.0,84599.0,0.250229]
[1741970352741,0.02202178,84600.0,84599.0,0.2505678]
[1741970353225,0.00012525,84600.0,84599.0,0.2505678]
[1741970353456,0.00012525,84600.0,84599.0,0.2535678]
[1741970353829,0.00012525,84600.0,84599.0,0.2505678]
[1741970354046,2.5e-07,84600.0,84599.0,0.26510865]
[1741970355090,2.5e-07,84600.0,84599.0,0.2475678]
[1741970355305,2.5e-07,84600.0,84599.0,0.2495678]
[1741970355504,2.5e-07,84600.0,84599.0,0.2475678]
[1741970356026,2.5e-07,84600.0,84599.0,0.2525678]
[1741970356409,2.5e-07,84600.0,84599.0,0.2505678]
[1741970356647,2.5e-07,84600.0,84599.0,0.2525678]
[1741970357025,2.5e-07,84600.0,84599.0,0.2505678]
[1741970357463,2.5e-07,84600.0,84599.0,0.2475678]
[1741970357685,2.5e-07,84600.0,84599.0,0.2505678]
[1741970358179,2.5e-07,84600.0,84599.0,0.2397478]
[1741970358403,2.5e-07,84600.0,84599.0,0.0033388]
[1741970359082,0.23640625,84600.0,84599.0,0.0063388]
[1741970359300,0.24822625,84600.0,84599.0,0.0033388]
[1741970359553,0.24822625,84600.0,84586.0,0.236445]
[1741970359554,0.236446,84586.0,84546.0,1.182761]
[1741970359803,0.3,84571.0,84570.0,0.34149764]
[1741970360042,0.3,84571.0,84570.0,0.10500764]
[1741970360504,0.311824,84571.0,84570.0,0.10500764]
[1741970360755,0.311824,84571.0,84570.0,0.08300764]
[1741970361231,0.0477,84578.0,84570.0,0.08300764]
[1741970361447,0.311824,84571.0,84570.0,0.08342329]
[1741970362375,0.313824,84571.0,84570.0,0.08342329]
[1741970362601,0.316824,84571.0,84570.0,0.08342329]
[1741970363064,0.319824,84571.0,84570.0,0.08342329]
[1741970363287,0.462424,84571.0,84570.0,0.00041565]
[1741970363532,0.465424,84571.0,84570.0,0.00041565]
[1741970363972,0.462424,84571.0,84570.0,0.00041565]
[1741970364947,0.58199903,84571.0,84570.0,0.00041565]
[1741970365179,0.58099903,84571.0,84570.0,4.5e-07]
[1741970365449,0.68063988,84571.0,84570.0,4.5e-07]
[1741970365664,0.69898085,84561.0,84560.0,1e-06]
[1741970365905,1.44982085,84561.0,84560.0,0.00012542]
[1741970366311,1.44982085,84561.0,84560.0,4.2e-07]
[1741970366535,6.56035385,84561.0,84560.0,4.2e-07]
[1741970366667,1.44982085,84561.0,84560.0,4.2e-07]
[1741970366870,1.56939588,84561.0,84560.0,4.2e-07]
[1741970367121,0.01183,84526.0,84520.0,0.236628]
[1741970367321,0.011831,84517.0,84516.0,0.00012493]
[1741970367889,0.248468,84518.0,84516.0,0.00012493]
[1741970368152,0.354861,84541.0,84528.0,0.01183]
[1741970368153,0.3,84537.0,84528.0,0.01183]
[1741970368347,0.14464,84534.0,84528.0,0.01183]
[1741970368562,0.14464,84534.0,84530.0,0.2366]
[1741970368798,0.381232,84534.0,84529.0,0.236605]
[1741970369019,0.14464,84534.0,84530.0,0.2366]
[1741970369462,0.011829,84533.0,84527.0,0.01183]
[1741970369685,0.31809415,84537.0,84500.0,0.618009]
[1741970369686,0.01809415,84537.0,84534.0,0.235588]
[1741970370133,0.01809415,84537.0,84532.0,0.011829]
[1741970370134,0.393043,84540.0,84535.0,0.236587]
[1741970370357,0.236578,84539.0,84535.0,0.235587]
[1741970370653,0.236581,84538.0,84533.0,0.236593]
[1741970370869,0.236633,84519.0,84516.0,0.00012493]
[1741970371099,0.011831,84520.0,84516.0,0.00012493]
[1741970371100,0.236638,84517.0,84516.0,0.00012493]
[1741970371298,0.236634,84519.0,84516.0,0.00012493]
[1741970371519,0.248461,84520.0,84516.0,0.00012493]
[1741970371520,0.548469,84517.0,84516.0,0.00012493]
[1741970371809,0.7311086,84517.0,84516.0,0.00012493]
[1741970372052,0.7311086,84517.0,84485.0,0.0121752]
[1741970372053,0.248538,84494.0,84485.0,0.0003392]
[1741970372660,0.567098,84494.0,84485.0,0.0003392]
[1741970373070,0.3,84489.0,84486.0,0.236724]
[1741970373478,0.31672863,84489.0,84486.0,0.236724]
[1741970373694,0.248561,84486.0,84485.0,0.00041624]
[1741970373868,0.3,84486.0,84485.0,0.00041624]
[1741970374078,0.3,84486.0,84485.0,0.24898024]
[1741970374275,0.3,84486.0,84485.0,0.00041624]
[1741970374656,0.536725,84486.0,84485.0,0.00041624]
[1741970374857,0.548561,84486.0,84485.0,0.00041624]
[1741970375073,0.66813603,84486.0,84485.0,0.00041624]
[1741970375270,0.548561,84486.0,84485.0,0.00041624]
[1741970375672,0.33301704,84486.0,84485.0,0.00041624]
[1741970375878,0.01672863,84489.0,84488.0,0.23672]
[1741970376073,0.001,84486.0,84485.0,0.00041624]
[1741970376376,0.3,84489.0,84486.0,0.236725]
[1741970376545,0.536718,84489.0,84485.0,0.00041624]
[1741970376751,0.302,84486.0,84485.0,0.00041624]
[1741970376962,0.311836,84486.0,84485.0,0.00041624]
[1741970377415,0.313836,84486.0,84485.0,0.00041624]
[1741970377819,0.311836,84486.0,84485.0,0.00041624]
[1741970378235,0.34473871,84486.0,84485.0,0.00041624]
[1741970378469,0.36330249,84486.0,84485.0,0.00041624]
[1741970378675,0.48287752,84486.0,84485.0,0.00041624]
[1741970379287,0.50616041,84486.0,84485.0,0.00041624]
[1741970379665,0.04384667,84486.0,84485.0,0.00041624]
[1741970379868,0.17911978,84486.0,84485.0,0.00041624]
[1741970380074,0.47911978,84486.0,84485.0,0.00041624]
[1741970380277,0.03439978,84486.0,84485.0,0.00041624]
[1741970380482,0.47911978,84486.0,84485.0,0.00041624]
[1741970380694,0.49225216,84486.0,84485.0,0.00041624]
[1741970380900,0.33039978,84486.0,84485.0,0.00041624]
[1741970381103,0.47511978,84486.0,84485.0,0.00041624]
[1741970381307,0.47711978,84486.0,84485.0,0.00041624]
[1741970381713,0.47511978,84486.0,84485.0,0.00041624]
[1741970382101,0.33439978,84486.0,84485.0,0.00041624]
[1741970382306,0.47351566,84486.0,84485.0,0.00041624]
[1741970382502,0.61627566,84486.0,84485.0,0.00041624]
[1741970382857,0.61827566,84486.0,84485.0,0.00041624]
[1741970383239,0.47351566,84486.0,84485.0,0.00041624]
[1741970383435,0.61327566,84486.0,84485.0,0.00041624]
[1741970383645,0.33239978,84486.0,84485.0,0.00041624]
[1741970383814,0.33739978,84486.0,84485.0,0.00041624]
[1741970384017,0.48015978,84486.0,84485.0,0.00041624]
[1741970384346,0.48515978,84486.0,84485.0,0.00041624]
[1741970384499,0.52134664,84486.0,84485.0,0.00041624]
[1741970384710,0.48515978,84486.0,84485.0,0.00041624]
[1741970384894,0.33539978,84486.0,84485.0,0.00041624]
[1741970385090,0.236778,84468.0,84464.0,0.21634024]
[1741970385296,0.248616,84468.0,84465.0,0.0001247]
[1741970385940,0.26718082,84468.0,84465.0,0.0001247]
[1741970386113,0.25534282,84468.0,84465.0,0.0001247]
[1741970386522,0.248616,84467.0,84465.0,0.0001247]
[1741970386755,0.24862,84466.0,84465.0,0.0001247]
[1741970386987,0.236781,84466.0,84465.0,0.0001247]
[1741970387188,0.62624488,84466.0,84465.0,0.0001247]
[1741970388292,0.63024488,84466.0,84465.0,0.0001247]
[1741970388661,0.79827767,84466.0,84465.0,0.0001247]
[1741970388864,0.79427767,84466.0,84465.0,0.0001247]
[1741970389065,0.14476,84466.0,84465.0,0.0002943]
[1741970389267,0.39838,84466.0,84465.0,0.0002943]
[1741970389818,0.40238,84466.0,84465.0,0.0002943]
[1741970390020,0.39838,84466.0,84465.0,0.0002943]
[1741970390216,0.2603477,84466.0,84465.0,0.0002943]
[1741970390448,0.0185667,84466.0,84465.0,0.2489173]
[1741970390879,0.0205667,84466.0,84465.0,0.2489173]
[1741970391515,0.0185667,84466.0,84465.0,0.2489173]
[1741970392361,0.2671867,84466.0,84465.0,0.0002943]
[1741970392561,0.0185667,84466.0,84465.0,0.0002943]
[1741970392769,0.0185667,84466.0,84465.0,0.2370783]
[1741970392945,0.0185667,84466.0,84465.0,0.0002943]
[1741970393352,0.2671867,84466.0,84465.0,0.0002943]
[1741970394124,0.0185667,84466.0,84465.0,0.0002943]
[1741970394348,0.2553477,84466.0,84465.0,0.0002943]
[1741970394614,0.2671867,84466.0,84465.0,0.0002943]
[1741970394839,0.24862,84466.0,84465.0,0.0002943]
[1741970395046,0.54862,84466.0,84465.0,0.0002943]
[1741970397033,0.53062,84466.0,84465.0,0.0002943]
[1741970397247,0.236806,84458.0,84454.0,0.2151083]
[1741970397545,0.236807,84457.0,84454.0,0.236815]
[1741970397800,0.236798,84460.0,84457.0,0.236806]
[1741970397801,0.01856663,84458.0,84457.0,0.236806]
[1741970398104,0.01856663,84458.0,84455.0,0.236811]
[1741970398281,0.01856663,84458.0,84457.0,0.248646]
[1741970400377,6.3e-07,84458.0,84457.0,0.38788685]
[1741970400585,0.77229218,84491.0,84475.0,0.011837]
[1741970400586,0.011836,84485.0,84475.0,0.011837]
[1741970400793,0.236722,84488.0,84483.0,0.011836]
[1741970401009,0.236722,84487.0,84484.0,0.236731]
[1741970401200,0.236726,84486.0,84483.0,0.236734]
[1741970401403,0.03586349,84487.0,84486.0,0.236725]
[1741970401611,0.03586349,84487.0,84486.0,0.248561]
[1741970401884,0.01856176,84487.0,84486.0,0.247561]
[1741970402586,0.01856176,84487.0,84486.0,0.246561]
[1741970403220,0.01856176,84487.0,84486.0,0.247561]
[1741970403426,0.002,84488.0,84487.0,0.02637685]
[1741970403427,7.6e-07,84488.0,84487.0,0.02637685]
[1741970403646,7.6e-07,84488.0,84487.0,0.02756014]
[1741970403864,7.6e-07,84488.0,84487.0,0.17228014]
[1741970404078,0.236634,84519.0,84511.0,0.011832]
[1741970404292,0.011831,84520.0,84509.0,0.23666]
[1741970404293,0.248479,84514.0,84509.0,0.011833]
[1741970404492,0.00075449,84515.0,84511.0,0.236654]
[1741970404702,0.00075449,84515.0,84502.0,0.011834]
[1741970404703,0.011832,84512.0,84502.0,0.011834]
[1741970404919,0.236664,84508.0,84504.0,0.236675]
[1741970405163,0.236694,84498.0,84491.0,0.248546]
[1741970405378,0.3,84519.0,84487.0,0.0110753]
[1741970405379,0.311833,84507.0,84496.0,0.011834]
[1741970405594,0.3,84499.0,84497.0,0.236694]
[1741970405840,0.011832,84510.0,84503.0,0.248508]
[1741970405841,0.236663,84509.0,84503.0,0.248508]
[1741970406063,0.011834,84501.0,84492.0,0.011835]
[1741970406275,0.011835,84495.0,84489.0,0.011835]
[1741970406476,0.236686,84500.0,84497.0,0.236692]
[1741970406682,0.236664,84508.0,84505.0,0.011833]
[1741970406887,0.236668,84507.0,84502.0,0.236679]
[1741970407105,0.236675,84504.0,84500.0,0.248517]
[1741970407334,0.248505,84506.0,84500.0,0.011834]
[1741970407541,0.236672,84505.0,84500.0,0.248519]
[1741970407745,0.25523452,84504.0,84498.0,0.236691]
[1741970407950,0.011835,84495.0,84489.0,0.011835]
[1741970408129,0.248532,84496.0,84493.0,0.236705]
[1741970408348,0.368436,84530.0,84503.0,0.011833]
[1741970408540,0.368436,84530.0,84498.0,0.248524]
[1741970408541,0.012833,84506.0,84498.0,0.248524]
[1741970408756,0.236699,84496.0,84491.0,0.011835]
[1741970408968,0.236691,84499.0,84492.0,0.248543]
[1741970409171,0.011834,84497.0,84493.0,0.236705]
[1741970409380,0.011834,84499.0,84494.0,0.011835]
[1741970409628,0.01855769,84498.0,84496.0,0.236697]
[1741970410061,0.01855769,84498.0,84497.0,0.011834]
[1741970411964,0.236653,84512.0,84506.0,0.011833]
[1741970412171,0.236653,84512.0,84504.0,0.236675]
[1741970412172,0.011833,84505.0,84498.0,0.011834]
[1741970412375,0.236673,84505.0,84502.0,0.23668]
[1741970412580,0.236678,84503.0,84500.0,0.236686]
[1741970412859,0.01258649,84515.0,84507.0,0.248497]
[1741970413065,0.01258649,84515.0,84514.0,0.248479]
[1741970413066,0.00075449,84515.0,84514.0,0.248479]
[1741970413620,0.00075449,84515.0,84514.0,0.247479]
[1741970414459,0.00275449,84515.0,84514.0,0.247479]
[1741970415086,0.00075449,84515.0,84514.0,0.249479]
[1741970415288,0.00075449,84515.0,84514.0,0.247479]
[1741970415682,0.00075449,84515.0,84514.0,0.249479]
[1741970416394,0.00075449,84515.0,84514.0,0.002]
[1741970416836,0.00075449,84515.0,84514.0,0.250479]
[1741970417507,0.00075449,84515.0,84514.0,0.248479]
[1741970417712,0.01930806,84515.0,84514.0,0.248479]
[1741970418637,0.01930806,84515.0,84514.0,0.250479]
[1741970419011,0.01930806,84515.0,84514.0,0.251479]
[1741970419430,0.01930806,84515.0,84514.0,0.250479]
[1741970419805,0.01930806,84515.0,84514.0,0.665079]
[1741970419985,0.01930806,84515.0,84514.0,0.663079]
[1741970420189,0.01930806,84515.0,84514.0,0.745479]
[1741970420711,0.01930806,84515.0,84514.0,0.747479]
[1741970421199,0.01930806,84515.0,84514.0,0.745479]
[1741970421392,6e-08,84515.0,84514.0,0.76301985]
[1741970421607,0.75156,84560.0,84555.0,0.248358]
[1741970421812,0.75156,84560.0,84549.0,0.011827]
[1741970421813,0.011825,84560.0,84549.0,0.011827]
[1741970421983,0.00046418,84556.0,84550.0,0.236545]
[1741970422191,0.011826,84555.0,84551.0,0.236541]
[1741970422393,0.01901228,84556.0,84553.0,0.236538]
[1741970422597,0.236536,84554.0,84550.0,0.248373]
[1741970422803,0.011826,84554.0,84548.0,0.23655]
[1741970423010,0.236566,84543.0,84540.0,0.156428]
[1741970423215,0.236542,84552.0,84549.0,0.236548]
[1741970423427,0.01901228,84556.0,84555.0,0.248358]
[1741970423638,0.00246418,84556.0,84555.0,0.248358]
[1741970424303,0.00546418,84556.0,84553.0,0.011826]
[1741970424480,0.00246418,84556.0,84554.0,0.236533]
[1741970424691,0.00246418,84556.0,84555.0,0.011826]
[1741970425163,0.00246418,84556.0,84555.0,0.008826]
[1741970425368,0.00246418,84556.0,84555.0,0.009826]
[1741970425541,0.00046418,84556.0,84551.0,0.011827]
[1741970425863,0.00046418,84556.0,84543.0,0.41459994]
[1741970425864,0.00046418,84556.0,84549.0,0.011827]
[1741970426087,0.236534,84555.0,84550.0,0.236546]
[1741970426303,0.236534,84555.0,84543.0,0.41459994]
[1741970426304,0.011826,84553.0,84543.0,0.41459994]
[1741970426505,0.236545,84551.0,84547.0,0.236552]
[1741970426734,0.236546,84550.0,84547.0,0.236552]
[1741970426934,0.23654,84552.0,84548.0,0.236551]
[1741970427141,0.236545,84551.0,84548.0,0.236551]
[1741970427370,0.25507862,84555.0,84554.0,0.248361]
[1741970427371,0.01854562,84555.0,84554.0,0.248361]
[1741970427583,6.2e-07,84555.0,84554.0,0.248361]
[1741970427790,0.00046418,84556.0,84555.0,0.011826]
[1741970427995,0.00046418,84556.0,84553.0,0.236538]
[1741970428194,0.00046418,84556.0,84547.0,0.156387]
[1741970428402,0.00046418,84556.0,84555.0,0.011826]
[1741970428611,0.00046418,84556.0,84552.0,0.236538]
[1741970428819,0.00046418,84556.0,84554.0,0.236534]
[1741970429021,0.011826,84553.0,84549.0,0.236547]
[1741970429256,0.00046418,84556.0,84547.0,0.011827]
[1741970429432,0.01900905,84556.0,84555.0,0.248358]
[1741970430425,0.01900905,84556.0,84555.0,0.247358]
[1741970430678,0.01900905,84556.0,84555.0,0.248358]
[1741970430878,0.01900905,84556.0,84555.0,0.249358]
[1741970431089,0.01900905,84556.0,84555.0,0.248358]